fUSD/lending_fUSD_20260425
["ID","MTS","AMOUNT","RATE_DAILY","PERIOD"]
[421113347,1777077031733,-450.0,8.219e-05,2]
[421113349,1777077031742,-500.0,8.219e-05,2]
[421113350,1777077031751,-450.0,8.219e-05,2]
[421113351,1777077031761,-500.0,8.219e-05,2]
[421113352,1777077031770,-450.0,8.219e-05,2]
[421113353,1777077031779,-176.0,8.219e-05,2]
[421113354,1777077031789,-450.0,8.219e-05,2]
[421113355,1777077031798,-450.0,8.219e-05,2]
[421113356,1777077031807,-450.0,8.219e-05,2]
[421113357,1777077031816,-165.16874836,8.219e-05,2]
[421113358,1777077031832,-284.83125164,8.219e-05,2]
[421113359,1777077031841,-450.0,8.219e-05,2]
[421113360,1777077031850,-450.0,8.219e-05,2]
[421113361,1777077031860,-450.0,8.219e-05,2]
[421113362,1777077031868,-450.0,8.219e-05,2]
[421113363,1777077031878,-450.0,8.219e-05,2]
[421113364,1777077031887,-450.0,8.219e-05,2]
[421113365,1777077031896,-450.0,8.219e-05,2]
[421113366,1777077031905,-450.0,8.219e-05,2]
[421113367,1777077031915,-25.16874836,8.219e-05,2]
[421113368,1777077031926,-300.0,8.219e-05,2]
[421113369,1777077031987,-124.83125164,8.219e-05,2]
[421113370,1777077031996,-337.27940549,8.219e-05,2]
[421113371,1777077032007,-112.72059451,8.219e-05,2]
[421113372,1777077032017,-450.0,8.219e-05,2]
[421113373,1777077032026,-450.0,8.219e-05,2]
[421113374,1777077032035,-450.0,8.219e-05,2]
[421113375,1777077032044,-450.0,8.219e-05,2]
[421113376,1777077032053,-450.0,8.219e-05,2]
[421113377,1777077032062,-468.81732524,8.219e-05,2]
[421113379,1777077032071,-500.0,8.219e-05,2]
[421113381,1777077032080,-500.0,8.219e-05,2]
[421113383,1777077032090,-500.0,8.219e-05,2]
[421113385,1777077032099,-500.0,8.219e-05,2]
[421113387,1777077032108,-81.89940599,8.219e-05,2]
[421113390,1777077032120,-418.10059401,8.219e-05,2]
[421113392,1777077032129,-425.04030255,8.219e-05,2]
[421113396,1777077037647,-74.95969745,8.219e-05,2]
[421113397,1777077037658,-500.0,8.219e-05,2]
[421113398,1777077037670,-500.0,8.219e-05,2]
[421113399,1777077037680,-500.0,8.219e-05,2]
[421113400,1777077037691,-500.0,8.219e-05,2]
[421113401,1777077037703,-500.0,8.219e-05,2]
[421113402,1777077037714,-500.0,8.219e-05,2]
[421113403,1777077037725,-500.0,8.219e-05,2]
[421113404,1777077037735,-418.27475202,8.219e-05,2]
[421113405,1777077037822,-81.72524798,8.219e-05,2]
[421113406,1777077037833,-202.27475202,8.219e-05,2]
[421113407,1777077037846,-297.72524798,8.219e-05,2]
[421113408,1777077037857,-500.0,8.219e-05,2]
[421113409,1777077037867,-560.60198494,8.219e-05,2]
[421113410,1777077037877,-500.0,8.219e-05,2]
[421113411,1777077037889,-500.0,8.219e-05,2]
[421113412,1777077037901,-245.50425533,8.219e-05,2]
[421113413,1777077037928,-254.49574467,8.219e-05,2]
[421113414,1777077037939,-500.0,8.219e-05,2]
[421113415,1777077037950,-500.0,8.219e-05,2]
[421113416,1777077037961,-500.0,8.219e-05,2]
[421113417,1777077037972,-500.0,8.219e-05,2]
[421113418,1777077037983,-500.0,8.219e-05,2]
[421113419,1777077037993,-500.0,8.219e-05,2]
[421113420,1777077038004,-500.0,8.219e-05,2]
[421113421,1777077038014,-283.48278788,8.219e-05,2]
[421113422,1777077038026,-280.0,8.219e-05,2]
[421113423,1777077038037,-500.0,8.219e-05,2]
[421113424,1777077038048,-300.0,8.3e-05,2]
[421113425,1777077038059,-300.0,8.3e-05,2]
[421113426,1777077038070,-300.0,8.3e-05,2]
[421113427,1777077038080,-300.0,8.3e-05,2]
[421113428,1777077038091,-300.0,8.3e-05,2]
[421113429,1777077038101,-447.11612569,8.3e-05,2]
[421113430,1777077038113,-250.0,8.3e-05,2]
[421113432,1777077038124,-195.13225105,8.384e-05,2]
[421113434,1777077038134,-500.0,8.386e-05,2]
[421113436,1777077038144,-500.0,8.386e-05,2]
[421113438,1777077038154,-500.0,8.386e-05,2]
[421113439,1777077038164,-500.0,8.386e-05,2]
[421113440,1777077038174,-500.0,8.386e-05,2]
[421113441,1777077038184,-500.0,8.386e-05,2]
[421113442,1777077038194,-500.0,8.386e-05,2]
[421113443,1777077038203,-500.0,8.386e-05,2]
[421113444,1777077038213,-500.0,8.386e-05,2]
[421113445,1777077038222,-500.0,8.386e-05,2]
[421113446,1777077038232,-500.0,8.386e-05,2]
[421113447,1777077038242,-500.0,8.386e-05,2]
[421113448,1777077038252,-500.0,8.386e-05,2]
[421113449,1777077038262,-500.0,8.386e-05,2]
[421113450,1777077038272,-500.0,8.386e-05,2]
[421113451,1777077038288,-500.0,8.386e-05,2]
[421113452,1777077038303,-500.0,8.386e-05,2]
[421113453,1777077038313,-500.0,8.386e-05,2]
[421113454,1777077038324,-500.0,8.386e-05,2]
[421113455,1777077038334,-500.0,8.386e-05,2]
[421113456,1777077038345,-500.0,8.386e-05,2]
[421113457,1777077038361,-238.22906072,8.386e-05,2]
[421113458,1777077038371,-3862.56,8.386e-05,2]
[421113459,1777077038381,-1120.09197258,8.386e-05,2]
[421113465,1777077039635,-468.89802742,8.386e-05,2]
[421113466,1777077039646,-299.99,8.386e-05,2]
[421113467,1777077039656,-14091.79925642,8.386e-05,2]
[421113469,1777077039679,-903.93718342,8.386e-05,2]
[421113470,1777077039691,-8469.46356016,8.386e-05,2]
[421113472,1777077039702,-432.37,8.386e-05,2]
[421113474,1777077039713,-1193.24,8.386e-05,2]
[421113475,1777077039724,-9999.99,8.386e-05,2]
[421113476,1777077039735,-24207.87,8.386e-05,2]
[421113477,1777077039745,-999.99,8.386e-05,2]
[421113478,1777077039756,-150.99,8.386e-05,2]
[421113480,1777077039767,-9999.99,8.386e-05,2]
[421113482,1777077039777,-9999.99,8.386e-05,2]
[421113484,1777077039788,-359.27,8.386e-05,2]
[421113486,1777077039798,-1153.57,8.387e-05,2]
[421113487,1777077039808,-200.0,8.4e-05,2]
[421113488,1777077039818,-151.0,8.562e-05,2]
[421113489,1777077039830,-1031.0,8.599e-05,5]
[421113490,1777077039842,-2377.6955199,8.653e-05,2]
[421113491,1777077039852,-2814.35,8.653e-05,2]
[421113492,1777077039863,-6512.21,8.653e-05,2]
[421113493,1777077039872,-6610.66456142,8.653e-05,2]
[421113494,1777077039890,-1012.48543858,8.653e-05,2]
[421113495,1777077039900,-1153.57,8.661e-05,2]
[421113496,1777077039910,-3372.14094086,8.695e-05,2]
[421113497,1777077039922,-1829.48085355,8.695e-05,2]
[421113498,1777077039934,-943.95867498,8.695e-05,2]
[421113499,1777077039946,-308.5174995,8.695e-05,2]
[421113500,1777077039959,-613.60780683,8.695e-05,2]
[421113501,1777077039976,-357.49999999,8.695e-05,2]
[421113502,1777077039990,-2458.88042609,8.695e-05,2]
[421113503,1777077040003,-1680.0,8.799e-05,2]
[421113504,1777077040013,-9999.99,8.815e-05,2]
[421113505,1777077040024,-250.0,8.877e-05,2]
[421113506,1777077040036,-250.0,8.877e-05,2]
[421113507,1777077040047,-250.0,8.881e-05,2]
[421113508,1777077040057,-420.0,8.885e-05,2]
[421113509,1777077040068,-1153.57,8.935e-05,2]
[421113510,1777077040078,-200.0,8.962e-05,2]
[421113511,1777077040088,-500.0,8.973e-05,2]
[421113512,1777077040098,-500.0,8.973e-05,2]
[421113513,1777077040109,-200.0,8.99e-05,2]
[421113514,1777077040120,-201.93286099,8.99e-05,2]
[421113515,1777077040131,-9211.34798985,8.99e-05,2]
[421113516,1777077040143,-334.83251074,8.99e-05,2]
[421113517,1777077040155,-743.50770149,8.99e-05,2]
[421113518,1777077040167,-227.34163157,8.99e-05,2]
[421113519,1777077040179,-693.3919763,8.99e-05,2]
[421113520,1777077040189,-235.75327194,8.99e-05,2]
[421113521,1777077040199,-244.476143,8.99e-05,2]
[421113522,1777077040210,-253.52176029,8.99e-05,2]
[421113523,1777077040222,-262.90206542,8.99e-05,2]
[421113524,1777077040232,-112.40682466,8.99e-05,2]
[421113525,1777077040361,-160.22261719,8.99e-05,2]
[421113526,1777077040376,-282.71673119,8.99e-05,2]
[421113527,1777077040390,-293.17725025,8.99e-05,2]
[421113528,1777077040405,-174.61919141,8.99e-05,2]
[421113529,1777077040420,-304.02480851,8.99e-05,2]
[421113530,1777077040432,-279.9045709,8.99e-05,2]
[421113531,1777077040451,-315.27372642,8.99e-05,2]
[421113532,1777077040468,-191.44383809,8.99e-05,2]
[421113533,1777077040482,-151.0,8.99e-05,2]
[421113534,1777077040496,-201.93286099,8.99e-05,2]
[421113535,1777077040509,-1190.0,8.995e-05,5]
[421113536,1777077040522,-55.68440505,9e-05,2]
[421113537,1777077040554,-1902.07,9e-05,2]
[421113538,1777077040584,-5186.96950047,9e-05,2]
[421113539,1777077040609,-892.18335078,9e-05,2]
[421113540,1777077040627,-350.33533698,9e-05,2]
[421113541,1777077040643,-430.4257349,9e-05,2]
[421113542,1777077040852,-13438.89564265,9e-05,2]
[421113543,1777077040866,-238.2041518,9e-05,2]
[421113544,1777077040877,-94.9233674,9e-05,2]
[421113549,1777077040916,-519.56113632,9e-05,2]
[421113550,1777077040929,-4750.7671277,9e-05,2]
[421113567,1777077043368,-970.18063068,9e-05,2]
[421113568,1777077043625,-3685.67326965,9e-05,2]
[421113569,1777077043635,-375.1,9e-05,2]
[421113570,1777077043646,-2400.0,9e-05,3]
[421113571,1777077043656,-500.0,9e-05,2]
[421113572,1777077043667,-156.0,9e-05,3]
[421113573,1777077043677,-281.42,9.014e-05,2]
[421113574,1777077043688,-255.0,9.04e-05,2]
[421113575,1777077043699,-167.0,9.044e-05,2]
[421113576,1777077043709,-340.81987562,9.045e-05,2]
[421113577,1777077043720,-430.42,9.1e-05,2]
[421113578,1777077043731,-883.78,9.1e-05,2]
[421113579,1777077043742,-471.77,9.1e-05,2]
[421113580,1777077043753,-689.66108937,9.1e-05,2]
[421113581,1777077043818,-893.30891063,9.1e-05,2]
[421113582,1777077043828,-2459.19,9.1e-05,2]
[421113583,1777077043838,-614.79,9.1e-05,2]
[421113584,1777077043849,-614.79,9.1e-05,2]
[421113585,1777077043860,-614.79,9.1e-05,2]
[421113586,1777077043873,-614.79,9.1e-05,2]
[421113587,1777077043884,-152.0,9.127e-05,2]
[421113588,1777077043895,-247.49764592,9.127e-05,2]
[421113589,1777077043905,-152.0,9.127e-05,2]
[421113590,1777077043915,-151.0,9.127e-05,2]
[421113591,1777077043926,-152.0,9.127e-05,2]
[421113592,1777077043936,-151.0,9.127e-05,2]
[421113593,1777077043947,-152.0,9.127e-05,2]
[421113594,1777077043958,-183.57157804,9.127e-05,2]
[421113595,1777077043969,-151.0,9.127e-05,2]
[421113596,1777077043981,-151.0,9.127e-05,2]
[421113598,1777077043991,-151.0,9.127e-05,2]
[421113600,1777077044002,-151.0,9.127e-05,2]
[421113601,1777077044014,-151.0,9.127e-05,2]
[421113603,1777077044024,-153.35058231,9.127e-05,2]
[421113605,1777077044035,-1532.0,9.127e-05,2]
[421113606,1777077044046,-1532.0,9.127e-05,2]
[421113607,1777077044055,-1532.0,9.127e-05,2]
[421113608,1777077044066,-1532.0,9.127e-05,2]
[421113609,1777077044076,-151.0,9.127e-05,2]
[421113610,1777077044085,-157.0,9.14e-05,2]
[421113611,1777077044096,-1532.0,9.14e-05,2]
[421113612,1777077044106,-1532.0,9.14e-05,2]
[421113613,1777077044118,-157.0,9.14e-05,2]
[421113614,1777077044130,-152.0,9.14e-05,2]
[421113615,1777077044140,-1532.0,9.14e-05,2]
[421113616,1777077044152,-304.08237479,9.14e-05,2]
[421113617,1777077044162,-152.0,9.14e-05,2]
[421113619,1777077044173,-168.50576516,9.14e-05,2]
[421113621,1777077044183,-152.0,9.14e-05,2]
[421113623,1777077044193,-167.0,9.14e-05,2]
[421113625,1777077044203,-152.0,9.14e-05,2]
[421113627,1777077044213,-151.0,9.14e-05,2]
[421113643,1777077044578,-1153.57,9.208e-05,2]
[421113644,1777077044599,-222.0,9.359e-05,2]
[421113645,1777077044609,-296.67206948,9.38e-05,2]
[421113646,1777077044619,-271.43,9.382e-05,2]
[421113647,1777077044629,-151.0,9.391e-05,2]
[421113648,1777077044640,-467.65368175,9.466e-05,2]
[421113649,1777077044651,-1153.57,9.482e-05,2]
[421113650,1777077044661,-200.0,9.492e-05,2]
[421113651,1777077044670,-274.0,9.492e-05,2]
[421113652,1777077044680,-150.149,9.492e-05,2]
[421113653,1777077044689,-150.0,9.492e-05,2]
[421113654,1777077044700,-150.051,9.492e-05,2]
[421113655,1777077044710,-150.0,9.492e-05,2]
[421113656,1777077044722,-150.102,9.492e-05,2]
[421113657,1777077044732,-160.0,9.5e-05,2]
[421113658,1777077044742,-1000.0,9.521e-05,2]
[421113659,1777077044752,-1000.0,9.521e-05,2]
[421113660,1777077044762,-200.0,9.538e-05,2]
[421113661,1777077044772,-209.40437684,9.538e-05,2]
[421113662,1777077044781,-771.01748645,9.538e-05,2]
[421113663,1777077044791,-181.08010149,9.538e-05,2]
[421113664,1777077044801,-293.56604629,9.538e-05,2]
[421113665,1777077044810,-209.40437684,9.538e-05,2]
[421113666,1777077044820,-162.24500663,9.562e-05,2]
[421113667,1777077044830,-160.0,9.562e-05,2]
[421113668,1777077044839,-164.258,9.565e-05,2]
[421113669,1777077044850,-1281.271,9.596e-05,2]
[421113670,1777077044860,-1219.0,9.596e-05,2]
[421113671,1777077044870,-927.0,9.596e-05,2]
[421113672,1777077044880,-3531.0,9.596e-05,2]
[421113673,1777077044890,-628.241,9.596e-05,2]
[421113674,1777077044900,-366.0,9.599e-05,5]
[421113675,1777077044910,-2351.0,9.679e-05,2]
[421113676,1777077044919,-156.22,9.7e-05,2]
[421113677,1777077044929,-700.0,9.723e-05,4]
[421113678,1777077044939,-1153.57,9.756e-05,2]
[421113679,1777077044948,-587.0,9.773e-05,2]
[421113680,1777077044957,-350.0,9.898e-05,4]
[421113681,1777077044967,-433.0,9.944e-05,2]
[421113682,1777077044977,-1117.0,9.964e-05,2]
[421113683,1777077044986,-500.0,9.973e-05,2]
[421113684,1777077044996,-607.30215149,9.973e-05,2]
[421113685,1777077045006,-150.0,9.999e-05,2]
[421113686,1777077045016,-181.8616229,0.0001,2]
[421113687,1777077045027,-160.0,0.0001,2]
[421113688,1777077045036,-160.0,0.0001,2]
[421113689,1777077045046,-160.0,0.0001,2]
[421113690,1777077045055,-189.17546686,0.0001,2]
[421113691,1777077045065,-151.0,0.0001,2]
[421113692,1777077045074,-45598.21301054,0.0001,2]
[421113693,1777077045087,-27735.04881696,0.0001,2]
[421113696,1777077045797,-571.82945458,0.0001,2]
[421113697,1777077046289,-433.90871792,0.0001,2]
[421113698,1777077046299,-368.37043283,0.0001,2]
[421113699,1777077046308,-368.37043283,0.0001,2]
[421113700,1777077046318,-368.37043283,0.0001,2]
[421113701,1777077046328,-2000.0,0.0001,2]
[421113702,1777077046337,-2000.0,0.0001,2]
[421113703,1777077046348,-2000.0,0.0001,2]
[421113704,1777077046358,-2000.0,0.0001,2]
[421113705,1777077046368,-1099.88680705,0.0001,2]
[421113706,1777077046381,-338.89006486,0.0001,2]
[421113707,1777077046412,-561.22312809,0.0001,2]
[421113708,1777077046422,-437.77687191,0.0001,2]
[421113709,1777077046435,-1562.22312809,0.0001,2]
[421113710,1777077046445,-1061.83161736,0.0001,2]
[421113711,1777077046456,-917.10862438,0.0001,2]
[421113747,1777077181179,300.0,8.077e-05,2]
[421113748,1777077181374,169.0,8.077e-05,2]
[421113749,1777077181727,150.0,8.077e-05,2]
[421113750,1777077185592,500.0,8.077e-05,2]
[421113751,1777077187022,231.34969232,8.077e-05,2]
[421113752,1777077198448,500.0,8.077e-05,2]
[421113753,1777077198485,330.28230696,8.077e-05,2]
[421113754,1777077246817,152.0,8.077e-05,3]
[421113755,1777077250042,156.0,8.077e-05,3]
[421113756,1777077285359,611.09465276,8.077e-05,2]
[421113757,1777077301182,1200.0,8.077e-05,2]
[421113758,1777077305979,157.0,8.077e-05,3]
[421113759,1777077309232,152.0,8.077e-05,3]
[421113760,1777077361420,150.0,8.077e-05,2]
[421113761,1777077361483,300.0,8.077e-05,2]
[421113762,1777077366391,300.0,8.077e-05,2]
[421113763,1777077368549,152.0,8.077e-05,3]
[421113764,1777077390220,500.0,8.077e-05,2]
[421113765,1777077407055,592.56646407,8.077e-05,2]
[421113766,1777077432012,152.0,8.077e-05,3]
[421113767,1777077464501,300.81375751,8.077e-05,2]
[421113768,1777077475856,242.02025923,8.077e-05,2]
[421113769,1777077486700,542.63463508,8.077e-05,2]
[421113770,1777077487069,500.0,8.077e-05,2]
[421113771,1777077487585,152.0,8.077e-05,3]
[421113772,1777077495846,308.05452284,8.077e-05,2]
[421113773,1777077504837,500.0,8.077e-05,2]
[421113774,1777077511883,166.52342391,8.077e-05,2]
[421113775,1777077511918,310.45894027,8.077e-05,2]
[421113776,1777077511950,222.21134505,8.077e-05,2]
[421113777,1777077511975,277.78865495,8.077e-05,2]
[421113778,1777077512157,177.57720036,8.077e-05,2]
[421113779,1777077512395,500.0,8.077e-05,2]
[421113780,1777077520069,500.0,8.077e-05,2]
[421113781,1777077524373,600.0,8.077e-05,2]
[421113782,1777077531455,500.0,8.077e-05,2]
[421113783,1777077541115,300.0,8.077e-05,2]
[421113784,1777077541494,150.0,8.077e-05,2]
[421113785,1777077542915,500.0,8.077e-05,2]
[421113786,1777077542950,501.71233825,8.077e-05,2]
[421113787,1777077543019,500.0,8.077e-05,2]
[421113788,1777077543085,500.0,8.077e-05,2]
[421113789,1777077547299,152.0,8.077e-05,3]
[421113790,1777077553555,500.0,8.077e-05,2]
[421113791,1777077553607,500.0,8.077e-05,2]
[421113792,1777077553659,500.0,8.077e-05,2]
[421113793,1777077553714,500.0,8.077e-05,2]
[421113794,1777077553776,500.0,8.077e-05,2]
[421113795,1777077553822,153.4246765,8.077e-05,2]
[421113796,1777077566272,500.0,8.077e-05,2]
[421113797,1777077566330,153.4246765,8.077e-05,2]
[421113798,1777077566396,500.0,8.077e-05,2]
[421113799,1777077566435,500.0,8.077e-05,2]
[421113800,1777077566482,500.0,8.077e-05,2]
[421113801,1777077570231,34.08245344,8.077e-05,2]
[421113802,1777077570261,465.91754656,8.077e-05,2]
[421113803,1777077581148,500.0,8.077e-05,2]
[421113804,1777077581218,500.0,8.077e-05,2]
[421113805,1777077581255,500.0,8.077e-05,2]
[421113806,1777077581298,500.0,8.077e-05,2]
[421113807,1777077581360,500.0,8.077e-05,2]
[421113808,1777077581423,204.28084563,8.077e-05,2]
[421113809,1777077581805,500.0,8.077e-05,2]
[421113810,1777077590555,500.0,8.077e-05,2]
[421113811,1777077601365,300.0,8.077e-05,2]
[421113812,1777077601395,1200.0,8.077e-05,2]
[421113814,1777077605810,152.0,8.077e-05,3]
[421113815,1777077608338,500.0,8.077e-05,2]
[421113816,1777077624038,500.0,8.077e-05,2]
[421113817,1777077632615,217.32125819,8.077e-05,2]
[421113818,1777077632645,500.0,8.077e-05,2]
[421113819,1777077632703,365.25392047,8.077e-05,2]
[421113820,1777077632781,500.0,8.077e-05,2]
[421113821,1777077635793,500.0,8.077e-05,2]
[421113822,1777077635844,500.0,8.077e-05,2]
[421113823,1777077635903,500.0,8.077e-05,2]
[421113824,1777077635955,95.23642915,8.077e-05,2]
[421113825,1777077635983,356.04782455,8.077e-05,2]
[421113826,1777077642726,152.12488073,8.077e-05,2]
[421113827,1777077648303,500.0,8.077e-05,2]
[421113828,1777077666069,500.0,8.077e-05,2]
[421113829,1777077681449,500.0,8.077e-05,2]
[421113830,1777077689332,387.195,7.917e-05,2]
[421113831,1777077689485,5454.347,7.917e-05,2]
[421113832,1777077692970,500.0,8.077e-05,2]
[421113833,1777077704628,500.0,8.077e-05,2]
[421113834,1777077716246,500.0,8.077e-05,2]
[421113835,1777077721131,300.0,8.077e-05,2]
[421113836,1777077721660,150.0,8.077e-05,2]
[421113837,1777077726655,152.0,8.077e-05,3]
[421113838,1777077727620,500.0,8.077e-05,2]
[421113839,1777077739008,500.0,8.077e-05,2]
[421113840,1777077750506,500.0,8.077e-05,2]
[421113841,1777077761871,500.0,8.077e-05,2]
[421113842,1777077773249,500.0,8.077e-05,2]
[421113843,1777077781106,300.0,8.077e-05,2]
[421113844,1777077784683,500.0,8.077e-05,2]
[421113845,1777077789371,152.0,8.077e-05,3]
[421113846,1777077796222,500.0,8.077e-05,2]
[421113847,1777077806418,500.0,8.077e-05,2]
[421113848,1777077806468,500.0,8.077e-05,2]
[421113849,1777077824263,500.0,8.077e-05,2]
[421113850,1777077839951,4396.01,7.978e-05,2]
[421113851,1777077839976,1169.3955,7.978e-05,2]
[421113852,1777077840601,500.0,8.077e-05,2]
[421113853,1777077842782,300.0,8.077e-05,2]
[421113854,1777077852724,500.0,8.077e-05,2]
[421113855,1777077864678,500.0,8.077e-05,2]
[421113856,1777077873823,500.0,8.077e-05,2]
[421113857,1777077873963,216.80936152,8.077e-05,2]
[421113858,1777077874170,500.0,8.077e-05,2]
[421113859,1777077879405,500.0,8.077e-05,2]
[421113860,1777077879517,455.67774433,8.077e-05,2]
[421113861,1777077888744,500.0,8.077e-05,2]
[421113862,1777077901380,1200.0,8.077e-05,2]
[421113863,1777077901659,150.0,8.077e-05,2]
[421113864,1777077906510,500.0,8.077e-05,2]
[421113865,1777077913320,150.0,7.866e-05,2]
[421113866,1777077913425,150.0,7.866e-05,2]
[421113867,1777077916519,150.0,7.866e-05,2]
[421113868,1777077916590,150.0,7.866e-05,2]
[421113869,1777077918953,150.0,7.866e-05,2]
[421113870,1777077922088,500.0,8.077e-05,2]
[421113871,1777077925445,150.0,7.866e-05,2]
[421113872,1777077929683,150.0,7.866e-05,2]
[421113873,1777077929752,150.0,7.975e-05,2]
[421113874,1777077930349,150.0,7.866e-05,2]
[421113875,1777077933469,623.18964509,8.077e-05,2]
[421113876,1777077961612,34.93774906,8.077e-05,2]
[421113877,1777077961637,265.06225094,8.077e-05,2]
[421113878,1777077966321,500.0,8.077e-05,2]
[421113879,1777077979052,500.0,8.077e-05,2]
[421113880,1777077979105,500.0,8.077e-05,2]
[421113881,1777078004267,500.0,8.077e-05,2]
[421113882,1777078004561,500.0,8.077e-05,2]
[421113883,1777078004890,500.0,8.077e-05,2]
[421113884,1777078005202,584.95869811,8.077e-05,2]
[421113885,1777078021128,300.0,8.077e-05,2]
[421113886,1777078036262,1800.0,8e-05,2]
[421113887,1777078081665,150.0,8.077e-05,2]
[421113888,1777078085719,500.0,8.077e-05,2]
[421113889,1777078085890,168.97442103,8.077e-05,2]
[421113890,1777078098059,500.0,8.077e-05,2]
[421113891,1777078098096,500.0,8.077e-05,2]
[421113892,1777078098136,500.0,8.077e-05,2]
[421113893,1777078098174,500.0,8.077e-05,2]
[421113894,1777078098211,500.0,8.077e-05,2]
[421113895,1777078098448,500.0,8.077e-05,2]
[421113896,1777078098488,158.08285093,8.077e-05,2]
[421113897,1777078098542,72.93177899,8.077e-05,2]
[421113898,1777078098573,427.06822101,8.077e-05,2]
[421113899,1777078098648,500.0,8.077e-05,2]
[421113900,1777078098721,500.0,8.077e-05,2]
[421113901,1777078098764,500.0,8.077e-05,2]
[421113902,1777078098804,500.0,8.077e-05,2]
[421113903,1777078098845,500.0,8.077e-05,2]
[421113904,1777078098911,500.0,8.077e-05,2]
[421113905,1777078106789,6572.94177899,7.978e-05,2]
[421113906,1777078106817,10000.01,7.978e-05,2]
[421113907,1777078106843,10000.01,7.978e-05,2]
[421113908,1777078119279,-6453.3402883,7.978e-05,2]
[421113909,1777078121295,-10000.01,7.978e-05,2]
[421113910,1777078121397,-10000.01,7.978e-05,2]
[421113911,1777078121513,-10000.01,7.978e-05,2]
[421113912,1777078124642,-10000.01,7.978e-05,2]
[421113914,1777078231735,-904.63772545,7.977e-05,2]
[421113915,1777078231748,-295.36227455,7.977e-05,2]
[421113916,1777078231757,-921.67333271,7.978e-05,2]
[421113917,1777078231766,-5845.56439274,7.978e-05,2]
[421113918,1777078231894,-699.0,7.978e-05,2]
[421113919,1777078231906,-1019.06630726,7.978e-05,2]
[421113920,1777078231915,-150.0,8.084e-05,2]
[421113921,1777078231925,-579.75456,8.178e-05,2]
[421113922,1777078231934,-150.0,8.193e-05,2]
[421113923,1777078231944,-451.17913269,8.219e-05,2]
[421113924,1777078231955,-48.82086731,8.219e-05,2]
[421113925,1777078231965,-280.0,8.219e-05,2]
[421113926,1777078231974,-108.61589769,8.303e-05,2]
[421113927,1777078231986,-41.38410231,8.303e-05,2]
[421113928,1777078231996,-150.0,8.412e-05,2]
[421113929,1777078232005,-150.0,8.482e-05,2]
[421113930,1777078232015,-150.0,8.521e-05,2]
[421113931,1777078232024,-578.20924308,8.563e-05,2]
[421113932,1777078232033,-200.0,8.563e-05,2]
[421113933,1777078232043,-200.36280958,8.563e-05,2]
[421113934,1777078232052,-695.39793187,8.563e-05,2]
[421113935,1777078232063,-1377.42282659,8.563e-05,2]
[421113936,1777078232073,-743.50770149,8.563e-05,2]
[421113937,1777078232084,-217.15233878,8.563e-05,2]
[421113938,1777078232093,-174.61919141,8.563e-05,2]
[421113939,1777078232103,-201.93286099,8.563e-05,2]
[421113940,1777078232113,-150.0,8.63e-05,2]
[421113942,1777078232123,-355.71287276,8.695e-05,2]
[421113944,1777078232133,-755.40294368,8.695e-05,2]
[421113946,1777078232142,-233.61,8.696e-05,2]
[421113948,1777078232151,-1000.0,8.739e-05,2]
[421113950,1777078232160,-150.0,8.74e-05,2]
[421113952,1777078232170,-195.13225105,8.74e-05,2]
[421113954,1777078232179,-150.0,8.74e-05,2]
[421113956,1777078232188,-150.0,8.74e-05,2]
[421113958,1777078232197,-168.08915604,8.74e-05,2]
[421113961,1777078232207,-150.0,8.74e-05,2]
[421113963,1777078232216,-82.99278768,8.74e-05,2]
[421113965,1777078232228,-260.03248731,8.74e-05,2]
[421113968,1777078232260,-18651.89130534,8.74e-05,2]
[421113969,1777078232271,-48797.13460643,8.74e-05,2]
[421113970,1777078232280,-447.11612569,8.775e-05,2]
[421113971,1777078232289,-1680.0,8.775e-05,2]
[421113972,1777078232299,-967.34,8.885e-05,2]